bitfinex-derivatives/quotes_BTCF0:USTF0_20241231
["timestamp","ask_amount","ask_price","bid_price","bid_amount"]
[1735669224422,0.31434228,94210.0,94200.0,0.405]
[1735669224621,0.31434228,94210.0,94209.0,0.41395]
[1735669224813,0.12566312,94210.0,94209.0,1.91395]
[1735669225218,0.00856312,94210.0,94209.0,2.21395]
[1735669225418,0.3962,94242.0,94209.0,2.21395]
[1735669225619,0.053137,94232.0,94231.0,0.3608]
[1735669225920,0.09788524,94241.0,94231.0,0.3608]
[1735669226125,0.09788524,94241.0,94234.0,0.053136]
[1735669226319,0.053135,94236.0,94234.0,0.053136]
[1735669226621,0.053136,94234.0,94231.0,0.3608]
[1735669226823,0.053137,94233.0,94231.0,0.3608]
[1735669227919,0.004,94234.0,94222.0,0.3608]
[1735669228119,0.12459285,94232.0,94222.0,0.3608]
[1735669228323,0.053142,94224.0,94222.0,0.3608]
[1735669228726,0.0356,94223.0,94222.0,0.3608]
[1735669229936,0.002,94224.0,94223.0,0.053142]
[1735669231119,0.01844392,94226.0,94225.0,0.053141]
[1735669231334,0.053138,94230.0,94227.0,0.053139]
[1735669231929,0.053138,94230.0,94228.0,0.053139]
[1735669232630,0.053138,94230.0,94222.0,0.3608]
[1735669232823,0.058138,94230.0,94229.0,0.053139]
[1735669233625,0.005,94230.0,94229.0,0.053139]
[1735669234051,0.0364,94251.0,94229.0,0.3184595]
[1735669234336,0.089526,94251.0,94242.0,0.413931]
[1735669234840,0.01847968,94248.0,94242.0,0.413931]
[1735669235131,0.0075922,94243.0,94242.0,1.913931]
[1735669235435,0.0085922,94243.0,94242.0,1.913931]
[1735669235628,0.0025922,94243.0,94242.0,1.913931]
[1735669235936,0.0045922,94243.0,94242.0,0.413931]
[1735669237332,0.0035922,94243.0,94242.0,0.413931]
[1735669237635,0.0065922,94243.0,94242.0,0.413931]
[1735669241332,0.053136,94234.0,94233.0,0.053136]
[1735669241836,0.053137,94232.0,94230.0,0.3608]
[1735669242235,0.053138,94231.0,94230.0,0.3608]
[1735669242939,0.053138,94231.0,94230.0,0.413938]
[1735669244231,0.053138,94231.0,94230.0,0.416938]
[1735669244739,0.057138,94231.0,94230.0,0.413938]
[1735669245143,0.059138,94231.0,94230.0,0.413938]
[1735669246239,0.07743119,94231.0,94230.0,0.413938]
[1735669247538,0.05314,94227.0,94226.0,0.05314]
[1735669248242,0.05314,94227.0,94211.0,0.3608]
[1735669248243,0.053148,94212.0,94211.0,0.413948]
[1735669249549,0.053148,94212.0,94211.0,0.418948]
[1735669249550,0.054148,94212.0,94211.0,0.418948]
[1735669250737,0.001,94212.0,94211.0,0.418948]
[1735669250934,0.3608,94228.0,94211.0,0.3608]
[1735669251239,0.053143,94226.0,94225.0,0.053141]
[1735669254053,0.055143,94226.0,94225.0,0.053141]
[1735669254350,0.006,94226.0,94212.0,0.053148]
[1735669254642,0.006,94226.0,94211.0,1.8608]
[1735669254643,0.053148,94212.0,94211.0,0.414508]
[1735669254847,0.053148,94212.0,94211.0,0.413948]
[1735669255849,0.053146,94217.0,94216.0,0.053146]
[1735669256851,0.053142,94224.0,94211.0,0.3638]
[1735669257046,0.053148,94213.0,94211.0,0.416949]
[1735669257252,0.053148,94212.0,94211.0,0.3638]
[1735669257554,0.053148,94212.0,94211.0,0.003]
[1735669258048,0.0383,94215.0,94205.0,0.413952]
[1735669258049,0.05315,94209.0,94205.0,0.413952]
[1735669258249,0.05315,94209.0,94205.0,0.3608]
[1735669258453,0.053154,94201.0,94200.0,0.1]
[1735669258648,0.3608,94201.0,94173.0,0.22584193]
[1735669258840,0.053165,94182.0,94180.0,0.053166]
[1735669259042,0.053165,94182.0,94175.0,0.053169]
[1735669259354,0.053165,94182.0,94174.0,1.5]
[1735669259355,0.053167,94179.0,94178.0,0.36239272]
[1735669260153,0.053167,94179.0,94178.0,0.00159272]
[1735669260648,0.07115721,94179.0,94178.0,0.00159272]
[1735669262046,0.07215721,94179.0,94178.0,0.00659272]
[1735669262353,0.07215721,94179.0,94155.0,0.3608]
[1735669262354,0.05318,94156.0,94155.0,0.3608]
[1735669264877,0.053185,94147.0,94146.0,0.3608]
[1735669265958,0.053192,94134.0,94129.0,0.053195]
[1735669266158,0.053194,94132.0,94130.0,0.053194]
[1735669266347,0.13019889,94140.0,94126.0,0.3608]
[1735669266553,0.053192,94135.0,94134.0,0.3608]
[1735669267059,0.3608,94142.0,94126.0,0.413996]
[1735669267257,0.053196,94128.0,94126.0,0.3608]
[1735669268361,0.054196,94128.0,94126.0,0.3608]
[1735669268560,0.055196,94128.0,94126.0,0.3608]
[1735669269253,0.054196,94128.0,94126.0,0.3608]
[1735669269557,0.054196,94128.0,94127.0,7.617e-05]
[1735669270558,0.39028906,94128.0,94110.0,0.00159323]
[1735669270759,0.053205,94112.0,94110.0,0.00159323]
[1735669271161,0.0374,94111.0,94110.0,0.00159323]
[1735669271665,0.0374,94111.0,94100.0,0.1]
[1735669271962,0.414011,94101.0,94100.0,0.1]
[1735669272150,0.053211,94101.0,94100.0,0.1]
[1735669272358,0.0374,94111.0,94102.0,0.05321]
[1735669272548,0.02886486,94112.0,94110.0,0.053205]
[1735669272748,0.002,94128.0,94110.0,0.3608]
[1735669272948,0.002,94128.0,94119.0,1.8608]
[1735669273357,0.0532,94121.0,94119.0,0.3608]
[1735669273559,0.06502824,94120.0,94119.0,0.3608]
[1735669273759,0.03679449,94120.0,94119.0,0.3608]
[1735669274262,0.03679449,94120.0,94109.0,1.86136]
[1735669274263,0.053203,94116.0,94109.0,1.86136]
[1735669274457,0.001,94111.0,94109.0,1.8608]
[1735669274654,0.053206,94110.0,94109.0,0.3608]
[1735669275271,0.16699338,94120.0,94109.0,0.3608]
[1735669275272,0.053202,94117.0,94109.0,0.3608]
[1735669275465,0.16699338,94120.0,94109.0,0.3608]
[1735669275648,0.053206,94111.0,94109.0,0.3608]
[1735669276250,0.053201,94119.0,94110.0,0.053206]
[1735669276765,0.001,94116.0,94111.0,0.053205]
[1735669277062,0.053203,94116.0,94111.0,0.053205]
[1735669277261,0.3608,94112.0,94100.0,0.05178546]
[1735669277461,0.053216,94092.0,94078.0,0.3608]
[1735669277663,0.053216,94092.0,94076.0,0.0348]
[1735669277664,0.13019889,94090.0,94076.0,0.0348]
[1735669277862,0.053225,94076.0,94065.0,0.24377293]
[1735669278168,0.053234,94061.0,94059.0,0.19054193]
[1735669278562,0.3608,94063.0,94047.0,0.26153649]
[1735669278863,0.05324,94050.0,94047.0,0.26153649]
[1735669279083,0.3608,94063.0,94047.0,0.26153649]
[1735669279254,0.053238,94055.0,94050.0,0.13019889]
[1735669279654,0.00159506,94073.0,94050.0,0.13019889]
[1735669279655,0.00159506,94073.0,94072.0,0.053227]
[1735669280056,0.3608,94088.0,94080.0,0.053223]
[1735669280357,0.001,94092.0,94091.0,0.053217]
[1735669280561,0.001,94092.0,94091.0,0.414017]
[1735669280761,0.3608,94105.0,94104.0,0.053209]
[1735669280962,0.3608,94105.0,94104.0,1.553209]
[1735669281669,0.3608,94117.0,94104.0,0.053209]
[1735669281967,0.053202,94116.0,94114.0,0.053204]
[1735669282163,0.38895008,94117.0,94091.0,0.3608]
[1735669282478,0.38895008,94117.0,94078.0,0.0384]
[1735669282479,0.3608,94105.0,94102.0,0.05321]
[1735669282762,0.053217,94091.0,94090.0,0.13019889]
[1735669282965,0.053219,94088.0,94083.0,0.053221]
[1735669283262,0.053221,94084.0,94079.0,0.3608]
[1735669283669,0.053221,94084.0,94080.0,0.053222]
[1735669283869,0.0748,94094.0,94081.0,0.053222]
[1735669284069,0.053221,94083.0,94081.0,0.053222]
[1735669284372,0.3608,94086.0,94073.0,0.0384]
[1735669284668,0.053227,94073.0,94062.0,0.053233]
[1735669284877,0.053227,94073.0,94054.0,0.3608]
[1735669285067,0.053237,94056.0,94054.0,0.3608]
[1735669285266,0.3608,94055.0,94036.0,0.3608]
[1735669285465,0.053235,94059.0,94055.0,0.053237]
[1735669285667,0.02921719,94061.0,94060.0,0.053234]
[1735669286170,0.3608,94074.0,94073.0,0.053227]
[1735669286671,0.00159499,94075.0,94073.0,0.414027]
[1735669287573,0.001,94074.0,94073.0,0.415027]
[1735669288069,0.00159499,94075.0,94073.0,0.415027]
[1735669288070,0.00259499,94075.0,94073.0,0.415027]
[1735669288459,0.00259499,94075.0,94073.0,0.417027]
[1735669289059,0.00259499,94075.0,94074.0,1.5]
[1735669289261,0.00259499,94075.0,94074.0,1.5351]
[1735669289472,0.31661499,94093.0,94074.0,1.5351]
[1735669289677,0.001,94075.0,94074.0,1.5351]
[1735669290061,0.001,94075.0,94073.0,0.002]
[1735669290268,0.053226,94074.0,94073.0,0.001]
[1735669291076,0.053227,94072.0,94069.0,0.053229]
[1735669291573,0.053231,94066.0,94064.0,0.13019889]
[1735669291774,0.053231,94066.0,94056.0,0.13019889]
[1735669292274,0.3608,94068.0,94067.0,0.05323]
[1735669293571,0.3618,94068.0,94067.0,0.05623]
[1735669294482,0.001,94068.0,94067.0,0.05623]
[1735669294777,0.3608,94087.0,94067.0,0.05423]
[1735669294970,0.053222,94083.0,94081.0,0.053222]
[1735669295279,0.3608,94087.0,94067.0,0.003]
[1735669295467,0.05323,94069.0,94067.0,0.003]
[1735669295777,0.05323,94069.0,94067.0,0.05623]
[1735669296477,0.001,94068.0,94067.0,0.05823]
[1735669296679,0.001,94068.0,94067.0,0.05623]
[1735669296878,0.001,94068.0,94067.0,0.05823]
[1735669297180,0.05323,94069.0,94068.0,0.05323]
[1735669298584,0.3608,94075.0,94072.0,0.053227]
[1735669298878,0.053227,94073.0,94072.0,0.053227]
[1735669300071,0.057227,94073.0,94072.0,0.053227]
[1735669300283,0.057227,94073.0,94055.0,0.3608]
[1735669300473,0.053232,94064.0,94063.0,0.053232]
[1735669300675,0.053229,94069.0,94068.0,0.053229]
[1735669301470,0.053232,94065.0,94063.0,0.053232]
[1735669301789,0.0374,94072.0,94055.0,0.3608]
[1735669301973,0.053234,94061.0,94060.0,0.053234]
[1735669302676,0.05323,94067.0,94066.0,0.05323]
[1735669303481,0.0374,94072.0,94055.0,0.3608]
[1735669303669,0.053228,94071.0,94061.0,0.053233]
[1735669303876,0.053236,94056.0,94055.0,0.414037]
[1735669304280,0.053236,94056.0,94055.0,0.3608]
[1735669304583,0.002,94067.0,94046.0,0.3608]
[1735669304584,0.3608,94058.0,94046.0,0.3608]
[1735669304784,0.053239,94051.0,94047.0,0.053241]
[1735669304982,0.035,94050.0,94046.0,0.3608]
[1735669305283,0.02347136,94065.0,94046.0,0.3608]
[1735669305284,0.02335303,94063.0,94046.0,0.3608]
[1735669305489,0.002,94067.0,94054.0,0.414037]
[1735669305670,0.001,94056.0,94055.0,0.053237]
[1735669306381,0.08124951,94069.0,94065.0,0.053231]
[1735669306578,0.02335303,94071.0,94065.0,0.053231]
[1735669306883,0.482511,94102.0,94084.0,0.053221]
[1735669307182,0.053211,94101.0,94084.0,0.053221]
[1735669307377,0.02818419,94091.0,94084.0,1.553221]
[1735669307579,0.053211,94101.0,94084.0,1.5]
[1735669307777,0.053212,94100.0,94090.0,0.13019889]
[1735669308385,0.053213,94098.0,94091.0,0.053216]
[1735669308577,0.053213,94098.0,94097.0,0.053213]
[1735669308885,0.49387004,94102.0,94101.0,0.053211]
[1735669309104,0.39291003,94102.0,94101.0,0.053211]
[1735669309473,0.06361003,94102.0,94101.0,0.053211]
[1735669311173,0.06361003,94102.0,94090.0,0.13019889]
[1735669311174,0.005,94098.0,94090.0,0.13019889]
[1735669311378,0.053214,94096.0,94095.0,0.053214]
[1735669311577,0.005,94098.0,94090.0,0.13019889]
[1735669311578,0.005,94098.0,94097.0,0.053213]
[1735669311985,0.053214,94096.0,94095.0,0.053214]
[1735669312381,0.0347,94101.0,94086.0,0.3608]
[1735669312578,0.053217,94091.0,94085.0,0.05322]
[1735669312786,0.053217,94090.0,94086.0,0.053219]
[1735669312979,0.3608,94093.0,94086.0,0.053219]
[1735669312980,0.053219,94087.0,94086.0,0.053219]
[1735669315182,0.053219,94087.0,94086.0,0.283219]
[1735669315588,0.08451526,94087.0,94086.0,0.283219]
[1735669315885,0.08651526,94087.0,94086.0,0.283219]
[1735669317889,0.08651526,94087.0,94086.0,0.23]
[1735669321689,0.08651526,94087.0,94086.0,0.18365707]
[1735669321889,0.08651526,94087.0,94070.0,0.00159459]
[1735669321890,0.053228,94071.0,94070.0,0.00159459]
[1735669322093,0.414028,94071.0,94070.0,0.00159459]
[1735669322894,0.053237,94055.0,94054.0,0.3608]
[1735669323082,0.3608,94055.0,94041.0,0.053245]
[1735669323282,0.3608,94045.0,94040.0,0.00159505]
[1735669323483,0.053245,94041.0,94040.0,0.00159505]
[1735669323985,0.3608,94045.0,94034.0,0.053249]
[1735669324290,0.414048,94035.0,94034.0,0.053249]
[1735669325183,0.053256,94022.0,94021.0,0.053256]
[1735669325389,0.053256,94022.0,94018.0,0.31726142]
[1735669325390,0.3608,94024.0,94015.0,0.3608]
[1735669325583,0.053259,94016.0,94015.0,0.414059]
[1735669326394,0.053261,94012.0,94011.0,0.00159534]
[1735669326892,0.414061,94012.0,94011.0,0.00159534]
[1735669327497,0.053265,94006.0,94005.0,0.3608]
[1735669328015,0.001,94012.0,94011.0,0.053262]
[1735669328292,0.00159615,94025.0,94024.0,0.053255]
[1735669328493,0.00159615,94025.0,94024.0,1.914055]
[1735669328895,0.0348,94049.0,94025.0,0.053254]
[1735669329092,0.0348,94049.0,94024.0,1.8608]
[1735669329093,0.053242,94046.0,94041.0,0.053244]
[1735669329291,0.053242,94046.0,94042.0,0.053244]
[1735669329799,0.053242,94046.0,94045.0,0.053243]
[1735669329991,0.3608,94055.0,94037.0,0.3608]
[1735669330190,0.3608,94055.0,94046.0,0.053242]
[1735669330191,0.37883392,94055.0,94046.0,0.053242]
[1735669330392,0.37883392,94055.0,94054.0,0.053238]
[1735669330788,0.37883392,94055.0,94045.0,0.13019889]
[1735669330789,0.01803392,94055.0,94045.0,0.3608]
[1735669330993,0.3608,94050.0,94024.0,1.553854]
[1735669331193,0.053249,94034.0,94028.0,0.053252]
[1735669331494,0.053249,94034.0,94024.0,1.5]
[1735669331495,0.3608,94039.0,94024.0,1.50064]
[1735669331698,0.3608,94039.0,94037.0,0.053247]
[1735669331895,0.3608,94039.0,94038.0,0.053247]
[1735669332398,0.3608,94050.0,94030.0,0.3608]
[1735669332601,0.3608,94050.0,94040.0,0.13019889]
[1735669332799,0.3608,94050.0,94041.0,0.0344]
[1735669332997,0.3608,94050.0,94045.0,0.053242]
[1735669333299,0.053241,94048.0,94045.0,0.053242]
[1735669334096,0.38036027,94050.0,94041.0,0.0344]
[1735669334097,0.006,94046.0,94041.0,0.0344]
[1735669334299,0.053243,94045.0,94039.0,0.3608]
[1735669334497,0.053243,94045.0,94044.0,0.053243]
[1735669335706,0.001,94045.0,94044.0,0.053243]
[1735669336001,0.003,94045.0,94044.0,0.053243]
[1735669337202,0.001,94045.0,94044.0,0.053243]
[1735669337394,0.001,94045.0,94044.0,0.054243]
[1735669337797,0.43360027,94050.0,94048.0,0.05324]
[1735669338002,0.43272026,94050.0,94048.0,0.05324]
[1735669338399,0.43272026,94050.0,94049.0,0.05324]
[1735669339402,0.43472026,94050.0,94049.0,0.05324]
[1735669339898,0.38148026,94050.0,94049.0,0.05324]
[1735669340098,0.38348026,94050.0,94049.0,0.05324]
[1735669342211,0.43672026,94050.0,94049.0,0.05324]
[1735669343713,0.27700854,94050.0,94049.0,0.05324]
[1735669343913,0.27900854,94050.0,94049.0,0.05324]
[1735669344112,0.07792026,94050.0,94049.0,0.05324]
[1735669344305,0.07592026,94050.0,94049.0,0.05324]
[1735669344502,0.07792026,94050.0,94049.0,0.05324]
[1735669344707,0.02468026,94050.0,94049.0,0.05324]
[1735669344910,0.02068026,94050.0,94049.0,0.05324]
[1735669345124,0.02268026,94050.0,94049.0,0.05324]
[1735669347113,0.02068026,94050.0,94049.0,0.05324]
[1735669347311,0.02168026,94050.0,94049.0,0.05324]
[1735669347514,0.01968026,94050.0,94049.0,0.05324]
[1735669348317,0.01968026,94050.0,94049.0,0.05424]
[1735669348720,0.01968026,94050.0,94049.0,0.05324]
[1735669348903,0.01868026,94050.0,94049.0,0.05524]
[1735669349110,0.0342,94062.0,94049.0,0.002]
[1735669349310,0.0342,94062.0,94061.0,0.053234]
[1735669350420,0.05213479,94062.0,94061.0,0.053234]
[1735669351023,0.05813479,94062.0,94061.0,0.053234]
[1735669351423,0.06213479,94062.0,94061.0,0.053234]
[1735669351618,0.05613479,94062.0,94061.0,0.053234]
[1735669351820,0.06213479,94062.0,94061.0,0.053234]
[1735669353510,0.053241,94048.0,94041.0,0.3608]
[1735669353724,0.3608,94052.0,94030.0,0.36295519]
[1735669353918,0.08698557,94040.0,94030.0,0.36239519]
[1735669354133,0.08698557,94040.0,94031.0,0.05325]
[1735669354134,0.05325,94033.0,94031.0,0.05325]
[1735669354420,0.05325,94033.0,94030.0,0.36239519]
[1735669354421,0.053251,94031.0,94030.0,0.36239519]
[1735669354815,0.053251,94031.0,94030.0,0.36539519]
[1735669355011,0.053251,94031.0,94030.0,0.41864619]
[1735669355833,0.053251,94031.0,94030.0,0.41564619]
[1735669357618,0.053251,94031.0,94030.0,0.41764619]
[1735669358727,0.01806352,94031.0,94030.0,0.41764619]
[1735669358927,0.053249,94034.0,94030.0,0.41764619]
[1735669359126,0.053249,94034.0,94033.0,0.053249]
[1735669360415,0.053247,94038.0,94037.0,0.053247]
[1735669361829,0.057247,94038.0,94037.0,0.053247]
[1735669362536,0.004,94038.0,94037.0,0.053247]
[1735669364121,0.002,94038.0,94037.0,0.053247]
[1735669364327,0.01833737,94039.0,94038.0,0.053247]
[1735669364634,0.22057227,94046.0,94045.0,0.053243]
[1735669365533,0.23915622,94046.0,94045.0,0.053243]
[1735669365834,0.002,94046.0,94045.0,0.053243]
[1735669367231,0.004,94046.0,94045.0,0.053243]
[1735669370537,0.002,94046.0,94045.0,0.053243]
[1735669370740,0.05411624,94050.0,94049.0,0.05324]
[1735669372036,0.05611624,94050.0,94049.0,0.05324]
[1735669372239,0.05811624,94050.0,94049.0,0.05324]
[1735669372435,0.05324,94049.0,94048.0,0.3608]
[1735669372636,0.053251,94030.0,94029.0,0.414051]
[1735669372839,0.053251,94030.0,94029.0,0.053251]
[1735669373030,0.3608,94031.0,94019.0,0.00159536]
[1735669373337,0.3608,94031.0,94027.0,0.053253]
[1735669373338,0.053253,94028.0,94027.0,0.053253]
[1735669374534,0.053253,94028.0,94019.0,0.00159536]
[1735669374535,0.053257,94020.0,94019.0,0.00159536]
[1735669376535,0.15692972,94020.0,94019.0,0.00159536]
[1735669376839,0.17485738,94020.0,94019.0,0.00159536]
[1735669377646,0.17485738,94020.0,94019.0,0.00359536]
[1735669377937,0.29408693,94020.0,94019.0,0.00359536]
[1735669378343,0.29508693,94020.0,94019.0,0.00659536]
[1735669380632,0.29508693,94020.0,94000.0,0.57704]
[1735669380838,0.053266,94004.0,94003.0,0.053266]
[1735669381244,0.414066,94004.0,94003.0,0.053266]
[1735669382044,0.415066,94004.0,94003.0,0.056266]
[1735669383137,0.415066,94004.0,94003.0,0.003]
[1735669383746,0.43352548,94004.0,94003.0,0.003]
[1735669384344,0.43452548,94004.0,94003.0,0.004]
[1735669385150,0.43452548,94004.0,94003.0,0.001]
[1735669386441,0.43452548,94004.0,94000.0,0.1]
[1735669386442,0.053273,93992.0,93991.0,0.00056]
[1735669386636,0.053273,93992.0,93984.0,0.00159583]
[1735669386845,0.414077,93985.0,93984.0,0.00159583]
[1735669388341,0.3608,93985.0,93961.0,1.5]
[1735669388549,0.053286,93970.0,93969.0,0.053285]
[1735669389937,0.054286,93970.0,93969.0,0.053285]
[1735669390937,0.001,93970.0,93969.0,0.053285]
[1735669391663,0.002,93970.0,93969.0,0.053285]
[1735669391848,0.001,93985.0,93969.0,1.588285]
[1735669392149,0.054278,93985.0,93984.0,0.053277]
[1735669392345,0.001,93985.0,93984.0,0.053277]
[1735669392738,0.01626705,93985.0,93984.0,0.053277]
[1735669392943,0.3608,93994.0,93984.0,0.053277]
[1735669392944,0.3608,93994.0,93988.0,0.053275]
[1735669393148,0.3608,93994.0,93988.0,1.553275]
[1735669393342,0.3608,94007.0,94006.0,0.053265]
[1735669393744,0.01537164,94017.0,94016.0,0.053259]
[1735669393939,0.3608,94018.0,94017.0,0.053258]
[1735669395052,0.3765968,94018.0,94017.0,0.053258]
[1735669395259,0.3815968,94018.0,94017.0,0.053258]
[1735669395553,0.3885968,94018.0,94017.0,0.053258]
[1735669395947,0.053262,94011.0,93990.0,0.14035145]
[1735669396253,0.3608,94010.0,94000.0,0.08707745]
[1735669396555,0.3608,94010.0,94009.0,0.053263]
[1735669398252,0.0157968,94018.0,94017.0,0.053258]
[1735669398453,0.0157968,94018.0,94009.0,0.053263]
[1735669398454,0.3608,94020.0,94008.0,0.08707745]
[1735669398752,0.3608,94020.0,94019.0,0.053257]
[1735669398953,0.01538775,94029.0,94028.0,0.053252]
[1735669399144,0.36239583,94030.0,94029.0,0.053252]
[1735669399955,0.36239583,94030.0,94010.0,0.053262]
[1735669399956,0.79688841,94030.0,93983.0,0.3608]
[1735669400157,0.3608,93996.0,93995.0,0.053271]
[1735669400350,0.3608,93996.0,93980.0,0.3608]
[1735669400757,0.053275,93988.0,93980.0,0.414079]
[1735669401554,0.414075,93988.0,93987.0,0.00259593]
[1735669401753,0.414075,93988.0,93987.0,0.00359593]
[1735669402155,0.414075,93988.0,93987.0,0.00259593]
[1735669402357,0.415075,93988.0,93987.0,0.00359593]
[1735669403563,0.51856399,93988.0,93987.0,0.00359593]
[1735669404255,0.53423892,93988.0,93987.0,0.00359593]
[1735669405960,0.46528899,93988.0,93987.0,0.05687093]
[1735669406759,0.10448899,93988.0,93987.0,1.55687093]
[1735669406952,0.001,93988.0,93987.0,1.55687093]
[1735669409157,0.001,93988.0,93987.0,0.00359593]
[1735669409356,0.054275,93988.0,93987.0,0.00359593]
[1735669410052,0.415075,93988.0,93968.0,0.053286]
[1735669410249,0.053286,93969.0,93968.0,0.053286]
[1735669410454,0.053288,93965.0,93963.0,0.24282138]
[1735669410656,0.053288,93965.0,93964.0,0.053289]
[1735669411357,0.05329,93961.0,93960.0,0.00215644]
[1735669411550,0.05329,93961.0,93960.0,0.00159644]
[1735669412766,0.05329,93961.0,93960.0,0.00259644]
[1735669412961,0.37826236,93965.0,93960.0,0.00259644]
[1735669412962,0.37826236,93965.0,93964.0,0.053289]
[1735669413159,0.37738235,93965.0,93964.0,0.053289]
[1735669413757,0.37738235,93965.0,93964.0,1.553289]
[1735669413959,0.05329,93961.0,93960.0,0.00259644]
[1735669414560,0.05329,93961.0,93960.0,0.00159644]
[1735669414761,0.01558235,93965.0,93950.0,0.08707745]
[1735669415061,0.053288,93965.0,93964.0,0.053289]
[1735669416166,0.414083,93974.0,93973.0,0.053283]
[1735669416474,0.43007721,93974.0,93973.0,0.053283]
[1735669417264,0.37679421,93974.0,93973.0,0.053283]
[1735669417665,0.43007721,93974.0,93973.0,0.053283]
[1735669417876,0.37679421,93974.0,93973.0,0.053283]
[1735669418177,0.38079421,93974.0,93973.0,0.053283]
[1735669419077,0.38379421,93974.0,93973.0,0.053283]
[1735669420269,0.38371601,93974.0,93973.0,0.053283]
[1735669423069,0.02299421,93974.0,93973.0,0.053283]
[1735669423268,0.007,93974.0,93973.0,0.053283]
[1735669423573,0.3608,94003.0,93988.0,0.053275]
[1735669423766,0.3608,94003.0,93988.0,0.414075]
[1735669423767,0.01576264,93992.0,93988.0,0.414075]
[1735669423966,0.01576264,93992.0,93988.0,1.914075]
[1735669424368,0.01576264,93992.0,93988.0,0.414075]
[1735669424563,0.01576264,93992.0,93988.0,0.053275]
[1735669424768,0.00759645,93989.0,93988.0,0.053275]
[1735669425071,0.01659645,93989.0,93988.0,0.053275]
[1735669427279,0.01659645,93989.0,93988.0,0.092975]
[1735669429675,1e-08,93989.0,93988.0,0.131975]
[1735669429981,0.452161,94013.0,94012.0,0.053261]
[1735669430373,0.3989,94013.0,94012.0,0.053261]
[1735669430675,0.0156845,94013.0,94002.0,0.0403]
[1735669430872,0.27604883,94017.0,94016.0,0.053259]
[1735669431269,0.22278983,94017.0,94002.0,0.0403]
[1735669431475,0.053261,94013.0,94012.0,0.053261]
[1735669431782,0.054261,94013.0,94012.0,0.053261]
[1735669432873,0.301,94013.0,93980.0,0.08867355]
[1735669433080,0.3608,93995.0,93980.0,0.0015961]
[1735669433270,0.053277,93986.0,93985.0,0.053276]
[1735669433873,0.3608,93987.0,93980.0,0.0015961]
[1735669434075,0.3608,93987.0,93986.0,0.053276]
[1735669434275,0.414075,93987.0,93986.0,0.053276]
[1735669434676,0.3608,93987.0,93986.0,0.053276]
[1735669435480,0.3618,93987.0,93986.0,0.064276]
[1735669436081,0.4306516,93987.0,93986.0,0.064276]
[1735669436267,0.4306516,93987.0,93986.0,0.011]
[1735669436867,0.4306516,93987.0,93986.0,0.064276]
[1735669437066,0.3773766,93987.0,93986.0,0.064276]
[1735669439578,0.0165766,93987.0,93986.0,0.064276]
[1735669440779,0.001,93987.0,93986.0,0.425076]
[1735669441579,0.001,93987.0,93986.0,0.064276]
[1735669448079,0.58358983,94007.0,93986.0,0.425076]
[1735669448294,0.65215855,94007.0,94006.0,0.053265]
[1735669448795,0.67506264,94007.0,94006.0,0.053265]
[1735669449496,0.45227281,94007.0,94006.0,0.053265]
[1735669449794,0.43136872,94007.0,94006.0,0.053265]
[1735669450691,0.43236872,94007.0,94006.0,0.053265]
[1735669450886,0.37910372,94007.0,94006.0,0.053265]
[1735669451487,0.59826406,94007.0,94006.0,0.053265]
[1735669451702,0.59826406,94007.0,94006.0,0.001]
[1735669451703,0.67443215,94007.0,94006.0,0.001]
[1735669451884,0.053277,93987.0,93986.0,0.053276]
[1735669452098,0.053279,93982.0,93981.0,0.053279]
[1735669452387,0.3608,93989.0,93985.0,0.053276]
[1735669452388,0.053276,93986.0,93985.0,0.053276]
[1735669452791,0.10387594,93982.0,93981.0,0.053279]
[1735669453312,0.053279,93981.0,93978.0,0.053281]
[1735669453523,0.414079,93981.0,93978.0,0.053281]
[1735669453714,0.43698309,93981.0,93978.0,0.053281]
[1735669453919,0.43698309,93981.0,93970.0,0.09458664]
[1735669453920,0.43698309,93981.0,93980.0,0.0548751]
[1735669454117,0.414079,93981.0,93980.0,0.0015961]
[1735669454815,0.414079,93981.0,93980.0,0.0045961]
[1735669455112,0.451579,93981.0,93980.0,0.0045961]
[1735669455320,0.67373934,93981.0,93980.0,0.0045961]
[1735669456220,0.67673934,93981.0,93980.0,0.0045961]
[1735669457505,0.67673934,93981.0,93980.0,0.0015961]
[1735669457701,0.67973934,93981.0,93980.0,0.0015961]
[1735669457904,0.67973934,93981.0,93961.0,0.05329]
[1735669457905,0.053291,93962.0,93961.0,0.05329]
[1735669458409,0.053296,93951.0,93950.0,0.053296]
[1735669459017,0.3608,93952.0,93951.0,0.053296]
[1735669459205,0.3608,93963.0,93948.0,0.053297]
[1735669459206,0.053298,93949.0,93948.0,0.053297]
[1735669459609,0.053299,93946.0,93945.0,0.0372]
[1735669459917,0.0533,93946.0,93945.0,0.053299]
[1735669460117,0.0533,93946.0,93942.0,0.00159668]
[1735669460118,0.0533,93943.0,93942.0,0.00159668]
[1735669460420,0.3608,93946.0,93926.0,0.05331]
[1735669460599,0.05331,93927.0,93926.0,0.05331]
[1735669461397,0.3608,93931.0,93930.0,0.053308]
[1735669463200,0.3618,93946.0,93945.0,0.053299]
[1735669463586,0.3618,93946.0,93931.0,0.0378]
[1735669463587,0.053305,93936.0,93930.0,0.053308]
[1735669463787,0.002,93931.0,93930.0,0.068308]
[1735669464421,0.001,93931.0,93930.0,0.062308]
[1735669465319,0.41498601,93933.0,93931.0,0.053307]
[1735669465621,0.414106,93933.0,93931.0,0.053307]
[1735669465813,0.3608,93933.0,93931.0,0.053307]
[1735669466011,0.013762,93934.0,93931.0,0.3608]
[1735669466214,0.3608,93946.0,93944.0,0.053299]
[1735669466626,0.01367205,93947.0,93946.0,0.053299]
[1735669466920,0.414098,93947.0,93946.0,0.053299]
[1735669467117,0.0136416,93955.0,93946.0,0.053299]